{"text_format":"1","workbook":"xlsx","n_sheets":2,"sheets":["Anmeldung","Zähler"],"not_rendered":{"charts":0,"images":1,"macros":1,"external_links":0,"defined_names":4,"comments":0,"pivot_tables":0},"unopened":[],"bounds":{"document_bytes":16777216,"sheet_cells":100000,"rows_first":2000,"rows_last":500,"rows_between":2000,"halvings":0,"cell_chars":16384,"cell_head_chars":4096},"cells_cut":0,"cells_raw":0,"read":"whole","date_system":"1900"}

{"sheet":"Anmeldung","index":0,"n_rows":48,"n_cols":15,"rows_kept":48,"cut":false,"hidden":false,"merged":[[7,0,7,1],[7,12,7,13],[0,8,0,14],[1,8,1,14],[2,8,2,14],[3,8,3,14],[4,8,4,14],[5,8,5,13],[0,1,4,6],[6,8,6,14]]}
[null,"           Deutsche Meisterschaft\n           2025",null,null,null,null,null,"Verein / Schule"]
[null,null,null,null,null,null,null,"Name"]
[null,null,null,null,null,null,null,"Telefon"]
[null,null,null,null,null,null,null,"E-Mail"]
[null,null,null,null,null,null,null,"Betreuer"]
[null,null,null,null,null,null,null,"Kampfrichter",null,null,null,null,null,null,"Formen"]
[null,null,null,null,null,null,null,"Fotograf"]
["Anmeldung\nzur DM in Rees am 05.04.2025",null,{"$f":"COUNTIF(C11:C48,\"x\")","v":0},{"$f":"COUNTA(D11:D48)","v":0},{"$f":"COUNTA(E11:E48)","v":0},{"$f":"COUNTIF(F11:F48,\"x\")","v":0},{"$f":"COUNTIF(G11:G48,\"x\")","v":0},null,null,"2025-04-05",null,null,"Gesamtbetrag:",null,{"$f":"SUM(O11:O48)","v":0}]
[]
["Lfd.-Nr.","Vor- und Zuname","Formen\nTraditionell","Formen\nSynchron","Formen\nFreestyle","Freikampf","Bruchtest","Geschlecht\nw / m","Geburtsdatum","Alter\nam Turniertag","Größe\ncm","Gewicht\nkg","Gürtelgrad","GdB ≥ 30","Betrag"]
[1,null,null,null,null,null,null,null,null,{"$f":"IF(I11,DATEDIF(I11,J$8,\"y\"),\"\")","v":""},null,null,null,null,{"$f":"IF(B11<>\"\",IF(COUNTA(C11:G11)=1,15,IF(COUNTA(C11:G11)=2,30,IF(COUNTA(C11:G11)=3,45,IF(COUNTA(C11:G11)=4,60,IF(COUNTA(C11:G11)=5,75,\"\"))))),\"\")","v":""}]
[2,null,null,null,null,null,null,null,null,"",null,null,null,null,{"$f":"IF(B12<>\"\",IF(COUNTA(C12:G12)=1,15,IF(COUNTA(C12:G12)=2,30,IF(COUNTA(C12:G12)=3,45,IF(COUNTA(C12:G12)=4,60,IF(COUNTA(C12:G12)=5,75,\"\"))))),\"\")","v":""}]
[3,null,null,null,null,null,null,null,null,"",null,null,null,null,""]
[4,null,null,null,null,null,null,null,null,"",null,null,null,null,""]
[5,null,null,null,null,null,null,null,null,"",null,null,null,null,""]
[6,null,null,null,null,null,null,null,null,"",null,null,null,null,""]
[7,null,null,null,null,null,null,null,null,"",null,null,null,null,""]
[8,null,null,null,null,null,null,null,null,"",null,null,null,null,""]
[9,null,null,null,null,null,null,null,null,"",null,null,null,null,""]
[10,null,null,null,null,null,null,null,null,"",null,null,null,null,""]
[11,null,null,null,null,null,null,null,null,"",null,null,null,null,{"$f":"IF(B21<>\"\",IF(COUNTA(C21:G21)=1,15,IF(COUNTA(C21:G21)=2,30,IF(COUNTA(C21:G21)=3,45,IF(COUNTA(C21:G21)=4,60,IF(COUNTA(C21:G21)=5,75,\"\"))))),\"\")","v":""}]
[12,null,null,null,null,null,null,null,null,"",null,null,null,null,""]
[13,null,null,null,null,null,null,null,null,"",null,null,null,null,""]
[14,null,null,null,null,null,null,null,null,"",null,null,null,null,""]
[15,null,null,null,null,null,null,null,null,"",null,null,null,null,""]
[16,null,null,null,null,null,null,null,null,"",null,null,null,null,""]
[17,null,null,null,null,null,null,null,null,"",null,null,null,null,""]
[18,null,null,null,null,null,null,null,null,"",null,null,null,null,""]
[19,null,null,null,null,null,null,null,null,"",null,null,null,null,""]
[20,null,null,null,null,null,null,null,null,"",null,null,null,null,""]
[21,null,null,null,null,null,null,null,null,"",null,null,null,null,""]
[22,null,null,null,null,null,null,null,null,"",null,null,null,null,""]
[23,null,null,null,null,null,null,null,null,"",null,null,null,null,""]
[24,null,null,null,null,null,null,null,null,"",null,null,null,null,""]
[25,null,null,null,null,null,null,null,null,"",null,null,null,null,""]
[26,null,null,null,null,null,null,null,null,"",null,null,null,null,""]
[27,null,null,null,null,null,null,null,null,"",null,null,null,null,""]
[28,null,null,null,null,null,null,null,null,"",null,null,null,null,""]
[29,null,null,null,null,null,null,null,null,"",null,null,null,null,""]
[30,null,null,null,null,null,null,null,null,"",null,null,null,null,""]
[31,null,null,null,null,null,null,null,null,"",null,null,null,null,""]
[32,null,null,null,null,null,null,null,null,"",null,null,null,null,""]
[33,null,null,null,null,null,null,null,null,{"$f":"IF(I43,DATEDIF(I43,J$8,\"y\"),\"\")","v":""},null,null,null,null,""]
[34,null,null,null,null,null,null,null,null,"",null,null,null,null,""]
[35,null,null,null,null,null,null,null,null,"",null,null,null,null,""]
[36,null,null,null,null,null,null,null,null,"",null,null,null,null,""]
[37,null,null,null,null,null,null,null,null,"",null,null,null,null,""]
[38,null,null,null,null,null,null,null,null,"",null,null,null,null,""]

{"sheet":"Zähler","index":1,"n_rows":1,"n_cols":1,"rows_kept":1,"cut":false,"hidden":true,"merged":[]}
[1]